fUST/lending_fUST_20250505
["ID","MTS","AMOUNT","RATE_DAILY","PERIOD"]
[359949265,1746445843136,-160.0,0.00035643,3]
[359949266,1746445843146,-500.0,0.00035671,14]
[359949267,1746445843154,-151.0,0.00035671,14]
[359949268,1746445843163,-500.0,0.00035671,14]
[359949269,1746445843171,-235.90927626,0.00035671,14]
[359949270,1746445843180,-151.0,0.00035671,14]
[359949271,1746445843188,-151.0,0.00035671,14]
[359949272,1746445843197,-151.0,0.00035671,3]
[359949273,1746445843206,-500.0,0.00035671,3]
[359949274,1746445843215,-500.0,0.00035671,3]
[359949275,1746445843224,-255.09370797,0.00035671,14]
[359949276,1746445843234,-2162.0,0.00035671,14]
[359949277,1746445843243,-302.0,0.00035671,14]
[359949278,1746445843253,-500.0,0.00035671,14]
[359949279,1746445843262,-199.07220192,0.00035671,14]
[359949280,1746445843271,-500.0,0.00035671,14]
[359949281,1746445843281,-151.0,0.00035671,14]
[359949282,1746445843291,-500.0,0.00035671,14]
[359949283,1746445843301,-500.0,0.00035671,14]
[359949285,1746445843310,-500.0,0.00035671,14]
[359949288,1746445843320,-151.0,0.00035671,14]
[359949290,1746445843329,-841.77443764,0.00035671,3]
[359949292,1746445843338,-421.83547488,0.00035671,3]
[359949294,1746445843348,-2500.0,0.00035671,10]
[359949296,1746445843357,-2500.0,0.00035671,15]
[359949316,1746445843524,-561.23420002,0.00035671,20]
[359949319,1746445843534,-500.0,0.00035673,5]
[359949321,1746445843543,-444.01875665,0.00035673,5]
[359949323,1746445843553,-507.06205541,0.00035673,5]
[359949325,1746445843562,-500.0,0.00035673,2]
[359949327,1746445843570,-500.0,0.00035673,5]
[359949329,1746445843578,-500.0,0.00035673,5]
[359949331,1746445843587,-500.0,0.00035673,5]
[359949333,1746445843595,-500.0,0.00035673,5]
[359949335,1746445843605,-500.0,0.00035673,5]
[359949337,1746445843614,-500.0,0.00035673,5]
[359949339,1746445843624,-500.0,0.00035673,5]
[359949341,1746445843634,-150.89891265,0.00035673,5]
[359949343,1746445843643,-200.91653079,0.00035673,5]
[359949345,1746445843652,-495.35196328,0.00035673,5]
[359949347,1746445843662,-500.0,0.00035673,2]
[359949349,1746445843671,-500.0,0.00035673,5]
[359949351,1746445843680,-500.0,0.00035673,5]
[359949353,1746445843689,-433.37885088,0.00035688,3]
[359949355,1746445843699,-327.59419043,0.00035698,3]
[359949357,1746445843709,-160.0,0.00035698,3]
[359949359,1746445843718,-500.0,0.00035698,14]
[359949361,1746445843727,-151.0,0.00035698,14]
[359949363,1746445843736,-500.0,0.00035698,14]
[359949365,1746445843746,-256.76663444,0.00035698,14]
[359949367,1746445843755,-151.0,0.00035698,14]
[359949369,1746445843764,-151.0,0.00035698,3]
[359949371,1746445843774,-500.0,0.00035698,3]
[359949373,1746445843783,-500.0,0.00035698,3]
[359949375,1746445843793,-2162.0,0.00035698,14]
[359949377,1746445843802,-500.0,0.00035698,14]
[359949379,1746445843811,-500.0,0.00035698,14]
[359949381,1746445843820,-247.00376777,0.00035698,14]
[359949383,1746445843830,-448.52264615,0.00035698,14]
[359949385,1746445843839,-349.0,0.00035698,14]
[359949387,1746445843850,-500.0,0.00035698,14]
[359949389,1746445843860,-151.0,0.00035698,14]
[359949391,1746445843870,-6940.48,0.000357,30]
[359949393,1746445843880,-72.3221785,0.000357,30]
[359949416,1746445844086,-1282.24385333,0.000357,30]
[359949419,1746445844098,-3005.70396817,0.000357,30]
[359949421,1746445844108,-1126.95,0.000357,30]
[359949423,1746445844117,-160.0,0.000357,30]
[359949424,1746445844127,-151.0,0.000357,14]
[359949427,1746445844136,-151.0,0.000357,14]
[359949429,1746445844146,-151.0,0.000357,14]
[359949431,1746445844155,-151.0,0.000357,14]
[359949432,1746445844165,-1724.49,0.000357,7]
[359949434,1746445844174,-151.0,0.000357,14]
[359949436,1746445844183,-151.0,0.00035725,14]
[359949438,1746445844192,-199.151871,0.00035725,14]
[359949440,1746445844201,-165.634663,0.00035725,14]
[359949442,1746445844210,-165.634663,0.00035725,14]
[359949444,1746445844220,-151.0,0.00035725,14]
[359949446,1746445844229,-151.0,0.00035725,14]
[359949448,1746445844238,-151.0,0.00035725,14]
[359949450,1746445844247,-550.538839,0.00035725,14]
[359949452,1746445844257,-550.538839,0.00035725,14]
[359949454,1746445844266,-151.0,0.00035725,2]
[359949456,1746445844275,-253.888324,0.00035725,2]
[359949458,1746445844285,-218.808061,0.00035725,14]
[359949461,1746445844295,-218.808061,0.00035725,14]
[359949463,1746445844305,-151.0,0.00035725,14]
[359949465,1746445844315,-197.036821,0.00035725,14]
[359949467,1746445844324,-197.036821,0.00035725,14]
[359949469,1746445844333,-254.658006,0.00035725,14]
[359949471,1746445844345,-254.658006,0.00035725,14]
[359949473,1746445844357,-151.0,0.00035725,14]
[359949475,1746445844366,-500.0,0.00035726,14]
[359949477,1746445844375,-224.9900817,0.00035726,14]
[359949479,1746445844384,-500.0,0.00035726,14]
[359949481,1746445844394,-258.39620319,0.00035726,14]
[359949483,1746445844403,-151.62033751,0.00035726,3]
[359949485,1746445844412,-500.0,0.00035726,3]
[359949487,1746445844422,-500.0,0.00035726,3]
[359949489,1746445844431,-2162.0,0.00035726,14]
[359949491,1746445844440,-500.0,0.00035726,14]
[359949493,1746445844450,-500.0,0.00035726,14]
[359949495,1746445844459,-500.0,0.00035726,14]
[359949497,1746445844468,-152.46722359,0.00035726,14]
[359949499,1746445844477,-219.4194156,0.00035753,14]
[359949533,1746445844795,-400.0,0.00035616,2]
[359949536,1746445844806,-400.0,0.00035616,14]
[359949538,1746445844816,-400.0,0.00035616,14]
[359949540,1746445844827,-280.5805844,0.00035753,14]
[359949542,1746445844836,-500.0,0.00035753,14]
[359949544,1746445844846,-500.0,0.00035753,3]
[359949546,1746445844855,-500.0,0.00035753,3]
[359949548,1746445844865,-2162.0,0.00035753,14]
[359949550,1746445844875,-500.0,0.00035753,14]
[359949552,1746445844884,-198.0,0.00035753,14]
[359949554,1746445844894,-500.0,0.00035753,14]
[359949556,1746445844904,-311.56132816,0.0003578,14]
[359949558,1746445844916,-501.84581465,0.0003578,14]
[359949560,1746445844926,-507.38510946,0.0003578,3]
[359949562,1746445844936,-500.0,0.0003578,3]
[359949564,1746445844945,-2162.0,0.0003578,14]
[359949566,1746445844955,-500.0,0.0003578,14]
[359949568,1746445844964,-500.0,0.0003578,14]
[359949570,1746445844974,-500.0,0.00035808,3]
[359949572,1746445844984,-2162.0,0.00035808,14]
[359949573,1746445844993,-500.0,0.00035808,14]
[359949574,1746445845002,-414.11170991,0.00035808,14]
[359949575,1746445845011,-151.0,0.00035808,14]
[359949576,1746445845020,-160.0,0.00035835,3]
[359949577,1746445845029,-2162.0,0.00035835,14]
[359949578,1746445845038,-500.0,0.00035835,14]
[359949579,1746445845047,-433.37885088,0.00035852,3]
[359949580,1746445845057,-2162.0,0.00035863,14]
[359949581,1746445845066,-212.97734422,0.00035863,14]
[359949582,1746445845075,-500.0,0.00035873,5]
[359949583,1746445845084,-500.0,0.00035873,5]
[359949584,1746445845093,-623.93543996,0.00035873,5]
[359949585,1746445845103,-500.0,0.00035873,5]
[359949586,1746445845112,-501.93490172,0.00035873,5]
[359949587,1746445845121,-201.55683969,0.00035873,5]
[359949589,1746445845131,-500.0,0.00035873,5]
[359949591,1746445845140,-500.0,0.00035873,5]
[359949593,1746445845150,-297.19668229,0.00035873,5]
[359950347,1746445852391,-202.80331771,0.00035873,5]
[359950349,1746445852401,-500.0,0.00035873,5]
[359950351,1746445852410,-500.0,0.00035873,5]
[359950353,1746445852420,-500.0,0.00035873,5]
[359950355,1746445852430,-503.54941653,0.00035873,5]
[359950357,1746445852440,-506.08488989,0.00035873,5]
[359950359,1746445852451,-500.0,0.00035873,5]
[359950361,1746445852460,-500.0,0.00035873,5]
[359950363,1746445852469,-500.0,0.00035873,5]
[359950365,1746445852478,-500.0,0.00035873,5]
[359950367,1746445852488,-500.0,0.00035873,5]
[359950369,1746445852497,-500.0,0.00035873,5]
[359950371,1746445852506,-501.67952829,0.00035873,5]
[359950373,1746445852515,-500.0,0.00035873,5]
[359950375,1746445852524,-500.0,0.00035873,5]
[359950377,1746445852533,-500.0,0.00035873,5]
[359950379,1746445852542,-500.0,0.00035873,5]
[359950381,1746445852551,-500.0,0.00035873,5]
[359950383,1746445852560,-500.0,0.00035873,5]
[359950385,1746445852569,-500.0,0.00035873,5]
[359950387,1746445852578,-500.46667952,0.00035873,5]
[359950389,1746445852587,-500.0,0.00035873,5]
[359950391,1746445852596,-500.28110513,0.00035873,5]
[359950393,1746445852606,-500.0,0.00035873,5]
[359950395,1746445852615,-500.0,0.00035873,5]
[359950397,1746445852625,-500.0,0.00035873,5]
[359950399,1746445852634,-500.47963051,0.00035873,5]
[359950401,1746445852643,-500.0,0.00035873,5]
[359950403,1746445852653,-500.0,0.00035873,5]
[359950404,1746445852663,-500.84072205,0.00035873,3]
[359950405,1746445852672,-500.0,0.00035873,5]
[359950406,1746445852681,-500.0,0.00035873,5]
[359950407,1746445852691,-500.0,0.00035873,5]
[359950408,1746445852700,-500.921792,0.00035873,5]
[359950409,1746445852709,-501.10727872,0.00035873,5]
[359950410,1746445852718,-500.0,0.00035873,5]
[359950411,1746445852728,-500.69957845,0.00035873,5]
[359950412,1746445852736,-500.21956573,0.00035873,5]
[359950413,1746445852746,-500.0,0.00035873,5]
[359950414,1746445852755,-150.0,0.00035873,5]
[359950416,1746445852764,-203.833082,0.00035873,14]
[359950418,1746445852774,-151.0,0.00035873,14]
[359950420,1746445852783,-3900.40965792,0.0003588,3]
[359950422,1746445852792,-172.89711998,0.00035889,10]
[359950424,1746445852802,-2162.0,0.0003589,14]
[359950426,1746445852811,-151.0,0.0003589,14]
[359950428,1746445852820,-151.0,0.0003589,14]
[359950430,1746445852829,-151.0,0.0003589,14]
[359950432,1746445852838,-151.0,0.0003589,14]
[359950434,1746445852848,-374.630852,0.0003589,14]
[359950436,1746445852858,-374.630852,0.0003589,14]
[359950438,1746445852867,-374.630852,0.0003589,14]
[359950440,1746445852876,-374.630852,0.0003589,14]
[359950442,1746445852885,-151.0,0.0003589,14]
[359950444,1746445852895,-278.497364,0.0003589,14]
[359950446,1746445852904,-151.0,0.0003589,14]
[359950448,1746445852914,-151.0,0.0003589,14]
[359950450,1746445852923,-151.0,0.0003589,14]
[359950452,1746445852932,-151.0,0.0003589,14]
[359950454,1746445852942,-400.0,0.0003589,14]
[359950456,1746445852951,-400.0,0.0003589,14]
[359950458,1746445852961,-503.03740255,0.0003589,14]
[359950460,1746445852970,-400.0,0.0003589,14]
[359950463,1746445852980,-400.0,0.0003589,14]
[359950465,1746445852990,-407.65211754,0.0003589,14]
[359950467,1746445852999,-400.0,0.0003589,14]
[359950469,1746445853008,-400.0,0.0003589,14]
[359950470,1746445853018,-400.0,0.0003589,14]
[359950472,1746445853027,-400.0,0.0003589,14]
[359950474,1746445853036,-400.0,0.0003589,14]
[359950476,1746445853045,-400.0,0.0003589,14]
[359950478,1746445853055,-400.0,0.0003589,14]
[359950480,1746445853064,-400.0,0.0003589,14]
[359950482,1746445853073,-511.03529682,0.0003589,14]
[359950484,1746445853082,-315.44902119,0.0003589,14]
[359950486,1746445853093,-404.54151241,0.0003589,14]
[359950488,1746445853102,-400.0,0.0003589,14]
[359950490,1746445853111,-1000.0,0.0003589,28]
[359950492,1746445853120,-1000.0,0.0003589,28]
[359950494,1746445853129,-1000.0,0.0003589,28]
[359950496,1746445853138,-1000.0,0.0003589,28]
[359950498,1746445853147,-1000.0,0.0003589,28]
[359950500,1746445853156,-1000.0,0.0003589,28]
[359950502,1746445853165,-688.436082,0.0003589,28]
[359950504,1746445853174,-400.0,0.0003589,14]
[359950506,1746445853183,-400.0,0.0003589,14]
[359950508,1746445853192,-400.0,0.0003589,14]
[359950510,1746445853201,-400.0,0.0003589,14]
[359950512,1746445853210,-400.0,0.0003589,14]
[359950514,1746445853219,-400.0,0.0003589,14]
[359950516,1746445853228,-400.0,0.0003589,14]
[359950518,1746445853237,-400.0,0.0003589,14]
[359950520,1746445853246,-208.83459303,0.0003589,2]
[359950522,1746445853255,-400.0,0.0003589,14]
[359950524,1746445853265,-151.0,0.0003589,14]
[359950526,1746445853273,-151.0,0.0003589,14]
[359950528,1746445853283,-151.0,0.0003589,14]
[359950530,1746445853292,-400.0,0.0003589,14]
[359950532,1746445853301,-400.0,0.0003589,14]
[359950534,1746445853310,-151.0,0.0003589,14]
[359950536,1746445853320,-161.062148,0.0003589,14]
[359950538,1746445853329,-400.0,0.0003589,14]
[359950540,1746445853338,-400.0,0.0003589,14]
[359950543,1746445853351,-400.0,0.0003589,14]
[359950544,1746445853360,-400.0,0.0003589,14]
[359950546,1746445853369,-400.0,0.0003589,14]
[359950548,1746445853378,-400.0,0.0003589,14]
[359950550,1746445853387,-400.0,0.0003589,14]
[359950553,1746445853397,-400.0,0.0003589,14]
[359950554,1746445853407,-400.0,0.0003589,14]
[359950556,1746445853416,-400.0,0.0003589,14]
[359950558,1746445853425,-151.0,0.0003589,14]
[359950560,1746445853435,-400.0,0.0003589,14]
[359950562,1746445853444,-151.0,0.0003589,14]
[359950564,1746445853453,-151.0,0.0003589,14]
[359950566,1746445853462,-400.0,0.0003589,14]
[359950568,1746445853471,-400.0,0.0003589,14]
[359950570,1746445853480,-400.0,0.0003589,14]
[359950572,1746445853490,-400.0,0.0003589,14]
[359950574,1746445853499,-752.32,0.0003589,14]
[359950576,1746445853508,-400.0,0.0003589,14]
[359950578,1746445853517,-400.0,0.0003589,14]
[359950580,1746445853526,-400.0,0.0003589,14]
[359950582,1746445853535,-400.0,0.0003589,14]
[359950584,1746445853544,-165.634663,0.0003589,14]
[359950586,1746445853554,-165.634663,0.0003589,14]
[359950597,1746445853640,-165.634663,0.0003589,14]
[359950599,1746445853650,-404.52694129,0.0003589,14]
[359950601,1746445853659,-400.0,0.0003589,14]
[359950603,1746445853668,-400.0,0.0003589,14]
[359950605,1746445853677,-165.634663,0.0003589,14]
[359950607,1746445853686,-165.634663,0.0003589,14]
[359950609,1746445853697,-165.634663,0.0003589,14]
[359950611,1746445853708,-404.8013712,0.0003589,14]
[359950613,1746445853718,-400.0,0.0003589,14]
[359950615,1746445853727,-400.0,0.0003589,14]
[359950617,1746445853736,-400.0,0.0003589,14]
[359950619,1746445853746,-400.0,0.0003589,14]
[359950622,1746445853755,-919.64,0.0003589,14]
[359950624,1746445853765,-400.0,0.0003589,14]
[359950626,1746445853774,-304.06719554,0.0003589,14]
[359950628,1746445853783,-400.0,0.0003589,14]
[359950630,1746445853795,-400.0,0.0003589,14]
[359950631,1746445853803,-400.0,0.0003589,14]
[359950634,1746445853814,-400.0,0.0003589,14]
[359950636,1746445853823,-400.0,0.0003589,14]
[359950638,1746445853832,-400.0,0.0003589,14]
[359950639,1746445853842,-400.0,0.0003589,14]
[359950641,1746445853851,-400.0,0.0003589,14]
[359950643,1746445853860,-523.37362878,0.0003589,14]
[359950645,1746445853869,-400.0,0.0003589,14]
[359950647,1746445853878,-400.0,0.0003589,14]
[359950649,1746445853887,-231.44414669,0.0003589,14]
[359950651,1746445853896,-400.0,0.0003589,14]
[359950653,1746445853905,-400.0,0.0003589,14]
[359950655,1746445853914,-400.0,0.0003589,14]
[359950657,1746445853923,-400.0,0.0003589,14]
[359950659,1746445853932,-400.0,0.0003589,14]
[359950661,1746445853941,-400.0,0.0003589,14]
[359950663,1746445853950,-400.0,0.0003589,14]
[359950665,1746445853959,-400.0,0.0003589,14]
[359950667,1746445853969,-400.0,0.0003589,14]
[359950669,1746445853978,-400.0,0.0003589,14]
[359950671,1746445853987,-541.8784919,0.0003589,14]
[359950673,1746445853996,-335.36600046,0.0003589,14]
[359950675,1746445854005,-400.0,0.0003589,14]
[359950677,1746445854014,-400.0,0.0003589,14]
[359950679,1746445854024,-400.0,0.0003589,14]
[359950681,1746445854033,-203.44410118,0.0003589,14]
[359950683,1746445854043,-319.01591048,0.0003589,14]
[359950685,1746445854052,-400.0,0.0003589,14]
[359950687,1746445854061,-400.0,0.0003589,14]
[359950689,1746445854071,-400.0,0.0003589,14]
[359950691,1746445854080,-400.0,0.0003589,14]
[359950693,1746445854089,-400.0,0.0003589,14]
[359950695,1746445854099,-400.0,0.0003589,14]
[359950697,1746445854108,-744.69,0.0003589,14]
[359950700,1746445854118,-400.0,0.0003589,14]
[359950702,1746445854128,-400.0,0.0003589,14]
[359950704,1746445854137,-400.0,0.0003589,14]
[359950706,1746445854147,-400.0,0.0003589,14]
[359950708,1746445854156,-400.0,0.0003589,14]
[359950710,1746445854165,-400.0,0.0003589,14]
[359950712,1746445854174,-400.51914964,0.0003589,14]
[359950713,1746445854183,-1440.06,0.0003589,14]
[359950714,1746445854191,-400.0,0.0003589,14]
[359950715,1746445854200,-400.0,0.0003589,14]
[359950716,1746445854209,-323.67214338,0.0003589,14]
[359950717,1746445854218,-400.0,0.0003589,14]
[359950718,1746445854227,-400.0,0.0003589,14]
[359950719,1746445854237,-400.0,0.0003589,14]
[359950720,1746445854246,-400.0,0.0003589,14]
[359950721,1746445854255,-400.0,0.0003589,14]
[359950722,1746445854264,-400.0,0.0003589,14]
[359950724,1746445854279,-400.0,0.0003589,14]
[359950727,1746445854298,-306.93288657,0.0003589,14]
[359950730,1746445854314,-154.29437002,0.0003589,14]
[359950733,1746445854331,-400.0,0.0003589,14]
[359950736,1746445854350,-459.61,0.0003589,14]
[359950739,1746445854368,-200.0,0.0003589,14]
[359950741,1746445854383,-151.0,0.0003589,14]
[359950744,1746445854402,-151.0,0.0003589,14]
[359950747,1746445854419,-151.0,0.0003589,14]
[359950749,1746445854432,-203.2741198,0.0003589,14]
[359950752,1746445854448,-400.0,0.0003589,14]
[359950755,1746445854464,-400.0,0.0003589,14]
[359950758,1746445854481,-400.0,0.0003589,14]
[359950760,1746445854496,-400.0,0.0003589,2]
[359950762,1746445854508,-305.49772878,0.0003589,14]
[359950765,1746445854526,-400.0,0.0003589,14]
[359950768,1746445854540,-1757.66,0.0003589,14]
[359950770,1746445854554,-400.0,0.0003589,2]
[359950773,1746445854567,-400.0,0.0003589,14]
[359950775,1746445854580,-973.01,0.0003589,14]
[359950778,1746445854594,-400.0,0.0003589,14]
[359950780,1746445854607,-400.0,0.0003589,14]
[359950783,1746445854620,-400.0,0.0003589,14]
[359950785,1746445854633,-400.0,0.0003589,2]
[359950787,1746445854646,-400.0,0.0003589,14]
[359950790,1746445854659,-400.0,0.0003589,14]
[359950793,1746445854673,-400.0,0.0003589,14]
[359950795,1746445854687,-400.0,0.0003589,14]
[359950797,1746445854700,-400.0,0.0003589,14]
[359950800,1746445854713,-400.0,0.0003589,14]
[359950802,1746445854726,-400.0,0.0003589,14]
[359950805,1746445854738,-216.647116,0.0003589,14]
[359950807,1746445854752,-400.0,0.0003589,14]
[359950810,1746445854765,-400.0,0.0003589,14]
[359950812,1746445854779,-400.0,0.0003589,14]
[359950815,1746445854793,-595.45,0.0003589,14]
[359950817,1746445854807,-400.0,0.0003589,14]
[359950819,1746445854821,-400.0,0.0003589,14]
[359950822,1746445854834,-400.0,0.0003589,14]
[359950824,1746445854847,-209.21318412,0.0003589,14]
[359950827,1746445854862,-1163.63,0.0003589,14]
[359950830,1746445854875,-400.0,0.0003589,14]
[359950832,1746445854889,-400.0,0.0003589,14]
[359950835,1746445854904,-931.15,0.0003589,14]
[359950837,1746445854917,-400.0,0.0003589,14]
[359950840,1746445854931,-400.0,0.0003589,14]
[359950842,1746445854943,-151.0,0.0003589,14]
[359950844,1746445854956,-151.0,0.0003589,14]
[359950847,1746445854969,-424.79,0.0003589,14]
[359950849,1746445854982,-151.0,0.0003589,14]
[359950852,1746445854996,-550.538839,0.0003589,14]
[359950854,1746445855010,-550.538839,0.0003589,14]
[359950857,1746445855023,-550.538839,0.0003589,14]
[359950859,1746445855036,-754.93,0.0003589,14]
[359950861,1746445855049,-400.0,0.0003589,14]
[359950864,1746445855063,-550.538839,0.0003589,14]
[359950866,1746445855077,-550.538839,0.0003589,14]
[359950869,1746445855091,-400.0,0.0003589,14]
[359950871,1746445855105,-550.538839,0.0003589,14]
[359950874,1746445855118,-400.0,0.0003589,14]
[359950876,1746445855132,-435.98,0.0003589,14]
[359950879,1746445855145,-400.0,0.0003589,14]
[359950881,1746445855159,-467.97,0.0003589,14]
[359950884,1746445855173,-534.36,0.0003589,14]
[359950886,1746445855186,-400.0,0.0003589,14]
[359950888,1746445855196,-511.54472949,0.0003589,14]
[359950890,1746445855205,-400.0,0.0003589,14]
[359950892,1746445855215,-400.0,0.0003589,14]
[359950894,1746445855224,-400.0,0.0003589,14]
[359950911,1746445855373,-400.0,0.0003589,14]
[359950914,1746445855396,-400.0,0.0003589,14]
[359950916,1746445855406,-1416.56,0.0003589,14]
[359950918,1746445855415,-400.0,0.0003589,14]
[359950920,1746445855426,-788.17,0.0003589,14]
[359950922,1746445855435,-500.0,0.0003589,14]
[359950924,1746445855447,-400.0,0.0003589,14]
[359950926,1746445855456,-400.0,0.0003589,14]
[359950929,1746445855466,-495.62,0.0003589,14]
[359950930,1746445855476,-400.0,0.0003589,14]
[359950933,1746445855486,-581.17,0.0003589,14]
[359950934,1746445855495,-151.0,0.0003589,2]
[359950936,1746445855504,-151.0,0.0003589,2]
[359950938,1746445855514,-151.0,0.0003589,2]
[359950940,1746445855523,-400.0,0.0003589,14]
[359950942,1746445855532,-157.53076727,0.0003589,14]
[359950944,1746445855542,-2750.33,0.0003589,14]
[359950946,1746445855551,-400.0,0.0003589,14]
[359950948,1746445855560,-400.0,0.0003589,14]
[359950950,1746445855571,-400.0,0.0003589,14]
[359950952,1746445855580,-2105.55,0.0003589,14]
[359950954,1746445855589,-400.0,0.0003589,14]
[359950956,1746445855598,-401.81594102,0.0003589,14]
[359950957,1746445855608,-991.78015442,0.0003589,14]
[359950973,1746445855825,-8.21984558,0.0003589,14]
[359950975,1746445855835,-413.34170101,0.0003589,14]
[359950982,1746445855892,-400.0,0.00035616,14]
[359950984,1746445855901,-85.9620042,0.0003589,14]
[359950986,1746445855911,-587.49,0.0003589,14]
[359950989,1746445855920,-400.0,0.0003589,14]
[359950990,1746445855929,-666.63,0.0003589,14]
[359950992,1746445855939,-400.0,0.0003589,14]
[359950995,1746445855948,-400.0,0.0003589,14]
[359950997,1746445855958,-400.0,0.0003589,14]
[359950998,1746445855967,-400.0,0.0003589,14]
[359951000,1746445855977,-400.0,0.0003589,14]
[359951002,1746445855988,-400.0,0.0003589,14]
[359951005,1746445855998,-400.0,0.0003589,14]
[359951006,1746445856007,-500.0,0.0003589,14]
[359951009,1746445856017,-3426.74,0.0003589,14]
[359951010,1746445856026,-400.0,0.0003589,14]
[359951012,1746445856035,-400.0,0.0003589,14]
[359951014,1746445856045,-500.0,0.0003589,14]
[359951016,1746445856054,-400.0,0.0003589,14]
[359951018,1746445856064,-218.808061,0.0003589,14]
[359951020,1746445856074,-218.808061,0.0003589,14]
[359951022,1746445856084,-218.808061,0.0003589,14]
[359951025,1746445856094,-400.0,0.0003589,14]
[359951027,1746445856104,-400.0,0.0003589,14]
[359951029,1746445856113,-218.808061,0.0003589,14]
[359951031,1746445856124,-400.0,0.0003589,14]
[359951033,1746445856133,-218.808061,0.0003589,14]
[359951035,1746445856143,-218.808061,0.0003589,14]
[359951037,1746445856153,-400.0,0.0003589,14]
[359951039,1746445856163,-400.0,0.0003589,14]
[359951041,1746445856172,-400.0,0.0003589,14]
[359951043,1746445856182,-400.0,0.0003589,14]
[359951045,1746445856191,-400.0,0.0003589,14]
[359951047,1746445856201,-630.31,0.0003589,14]
[359951049,1746445856210,-400.0,0.0003589,14]
[359951051,1746445856218,-862.54,0.0003589,14]
[359951053,1746445856228,-151.0,0.0003589,14]
[359951054,1746445856238,-151.0,0.0003589,14]
[359951056,1746445856247,-151.0,0.0003589,14]
[359951058,1746445856257,-400.0,0.0003589,14]
[359951060,1746445856267,-400.0,0.0003589,14]
[359951062,1746445856276,-400.0,0.0003589,14]
[359951064,1746445856285,-151.0,0.0003589,14]
[359951066,1746445856294,-151.0,0.0003589,14]
[359951068,1746445856304,-151.0,0.0003589,14]
[359951069,1746445856313,-400.0,0.0003589,14]
[359951071,1746445856322,-400.0,0.0003589,14]
[359951072,1746445856332,-402.25243877,0.0003589,14]
[359951074,1746445856341,-400.0,0.0003589,14]
[359951075,1746445856354,-400.0,0.0003589,14]
[359951077,1746445856364,-433.25,0.0003589,14]
[359951079,1746445856373,-400.0,0.0003589,14]
[359951080,1746445856382,-468.59018752,0.0003589,14]
[359951082,1746445856391,-400.0,0.0003589,14]
[359951083,1746445856402,-400.0,0.0003589,14]
[359951085,1746445856411,-400.0,0.0003589,14]
[359951086,1746445856420,-400.0,0.0003589,14]
[359951088,1746445856431,-400.0,0.0003589,14]
[359951089,1746445856440,-400.0,0.0003589,14]
[359951091,1746445856450,-400.0,0.0003589,14]
[359951092,1746445856459,-400.0,0.0003589,14]
[359951094,1746445856468,-487.78,0.0003589,14]
[359951095,1746445856477,-400.0,0.0003589,14]
[359951097,1746445856487,-400.0,0.0003589,14]
[359951099,1746445856497,-400.0,0.0003589,14]
[359951100,1746445856507,-358.0,0.0003589,14]
[359951102,1746445856516,-445.34,0.0003589,14]
[359951103,1746445856525,-400.0,0.0003589,14]